Cogmind - Beta 13 X3 @@@ ROGUE MODE // 2024.02.13 @ 19:51:03 Player: Minty Result: Destroyed by 54-X4D(R) with Subdweller Machine Gun Performance ------------- Evolutions (0) 0 Regions Visited (2) 400 Robots Destroyed (13) 65 Value Destroyed (249) 249 Prototype IDs (2) 40 Alien Tech Used (0) 0 Bonus (0) 0 TOTAL SCORE: 754 Bonus ------- None Cogmind --------- Core Integrity 0/250 Matter 274/300 Energy 20/100 System Corruption 0% Temperature Cool (0) Movement Core (50) Location -10/Subcaves Parts ------- > --- POWER (1) -------- (None) > --- PROPULSION (2) --- (None) > --- UTILITY (2) ------ Targeting Computer > --- WEAPON (2) ------- (None) > --- INVENTORY (5) ---- Wheel Improved Heat Sink Signal Interpreter Propulsion Shielding Peak State ------------ > --- POWER ------------ Light Ion Engine > --- PROPULSION ------- Flight Unit Flight Unit > --- UTILITY ---------- Targeting Computer Propulsion Shielding > --- WEAPON ----------- Particle Gun Light Assault Rifle > --- INVENTORY -------- Light Ion Engine Wheel Signal Interpreter EM Pulse Gun Mining Laser [Rating: 8] Favorites ----------- Power Light Ion Engine Engine Light Ion Engine Propulsion Aluminum Leg Leg Aluminum Leg Flight Unit Flight Unit Utility Small Storage Unit Storage Small Storage Unit Processor Targeting Computer Protection Propulsion Shielding Weapon Small Laser Energy Gun Small Laser Ballistic Gun Light Assault Rifle Ballistic Cannon Light Cannon Special Weapon Mining Laser Build | -11 -10 -10 ------- Run | Yrd Mat Sub Slots Evolved . | . . . Power . | . . . Propulsion . | . . . Utility . | . . . Weapon . | . . . Parts Attached 23 | . 21 2 Power 2 | . 2 . Engine 2 | . 2 . Core . | . . . Reactor . | . . . Propulsion 2 | . 2 . Treads . | . . . Leg . | . . . Wheel . | . . . Hover . | . . . Flight 2 | . 2 . Utility 4 | . 4 . Device . | . . . Storage 1 | . 1 . Processor 2 | . 2 . Hackware . | . . . Protection 1 | . 1 . Artifact . | . . . Weapon 15 | . 13 2 Energy Gun 5 | . 4 1 Energy Cannon . | . . . Ballistic Gun 6 | . 6 . Ballistic Cannon 1 | . 1 . Launcher . | . . . Special Weapon 3 | . 2 1 Impact Weapon . | . . . Slashing Weapon . | . . . Piercing Weapon . | . . . Special Melee Weapon . | . . . Unidentified Prototypes . | . . . Parts Lost 7 | . . 7 Power 1 | . . 1 Propulsion 2 | . . 2 Utility . | . . . Weapon 4 | . . 4 Highest Loss Streak 7 | . . 7 To Critical Strikes . | . . . Average Slot Usage (%) 97 | . 98 86 Engine 13 | . 14 11 Leg 14 | . 17 . Flight 12 | . 10 23 Storage 14 | . 16 . Processor 7 | . 6 14 Protection 4 | . 3 10 Energy Gun 14 | . 14 15 Ballistic Gun 11 | . 11 9 Ballistic Cannon 1 | . 1 . Naked Turns . | . . . Heaviest Build 13 | 11 13 8 Greatest Support 20 | 20 20 8 Greatest Overweight (x) 2 | . 2 . Average Overweight (x) . | . . . Largest Inventory Capacity 8 | . 8 5 Average Capacity 6 | . 6 5 Most Carried 8 | . 8 5 Average Carried 6 | . 6 4 Final Capacity 8 | 8 5 5 Final Carried 6 | 6 5 4 Class Distribution -------------------- 100% | Mutant Dominant Class ---------------- Mutant | -10/Materials Mutant | -10/Subcaves Resources | -11 -10 -10 ----------- Run | Yrd Mat Sub Matter Collected 469 | 200 269 . Remotely . | . . . Salvage Created 359 | . 319 40 Parts 26 | . 24 2 Haulers Intercepted 1 | . 1 . Recyclers Shooed 3 | . 3 . Parts Field Recycled . | . . . Retrieved Matter . | . . . Parts Self-Destructed 5 | . . 5 Prevented . | . . . Kills | -11 -10 -10 ------- Run | Yrd Mat Sub Combat Hostiles Destroyed 7 | . 6 1 Guns 6 | . 6 . Cannons 1 | . . 1 Classes Destroyed 7 | . 6 1 Tunneler 2 | . 2 . Hauler 1 | . 1 . Operator 1 | . 1 . Watcher 2 | . 2 . Swarmer 3 | . 3 . Grunt 3 | . 3 . Subdweller 1 | . . 1 Best Kill Streak 3 | . 3 1 Combat Bots Only 3 | . 3 1 Max Kills in Single Turn 1 | . 1 1 Gunslinging . | . . . Exploded . | . . . Melee . | . . . Uniques/NPCs Destroyed . | . . . Combat | -11 -10 -10 -------- Run | Yrd Mat Sub Hostile Shots Fired 82 | . 40 42 Missed 32 | . 12 20 Damage Taken 775 | . 317 458 Core 266 | . 104 162 Absorbed by Shields . | . . . Redirected to Shielding 6 | . . 6 Core Remaining (%) 100 | 100 . . Volleys Fired 72 | . 62 10 Largest 2 | . 2 2 Hottest 105 | . 100 105 Shots Fired 127 | . 111 16 Gun 113 | . 98 15 Cannon 11 | . 11 . Launcher . | . . . Special 3 | . 2 1 Kinetic 57 | . 56 1 Thermal 36 | . 29 7 Explosive . | . . . Electromagnetic 34 | . 26 8 Robot Hit Streak 7 | . 7 6 Robot Miss Streak 3 | . 3 1 Penetration Max . | . . . Secondary Targets 2 | . 2 . Max Gunslinging Chain 1 | . 1 . Shots Hit Robots 74 | . 61 13 Core Hits 24 | . 21 3 Critical Kills . | . . . Critical Parts Destroyed . | . . . Critical Strikes . | . . . Melee Attacks . | . . . Impact . | . . . Slashing . | . . . Piercing . | . . . Sneak Attacks . | . . . Combat Hostiles . | . . . Follow-up Attacks . | . . . Damage Inflicted 991 | . 700 291 Guns 823 | . 662 161 Cannons 36 | . 36 . Explosions 106 | . . 106 Melee . | . . . Ramming 2 | . 2 . Kinetic 295 | . 295 . Thermal 377 | . 162 215 Explosive . | . . . Electromagnetic 317 | . 241 76 Impact . | . . . Slashing . | . . . Piercing . | . . . Highest Corruption . | . . . Average Corruption . | . . . Corruption Purged . | . . . Corruption Blocked . | . . . Overload Shots . | . . . Overflow Damage . | . . . Projectiles . | . . . Explosions . | . . . Melee . | . . . Knockbacks . | . . . Impact . | . . . Kinetic . | . . . Secondary . | . . . Self-Inflicted Damage . | . . . Shots . | . . . Rammed . | . . . Targets Rammed 1 | . 1 . Kicked 1 | . 1 . Crushed . | . . . Highest Temperature 126 | . 126 8 Average Temperature 34 | . 35 4 Received Heat Transfer 204 | . 150 54 Siege Activations . | . . . Robots Corrupted . | . . . Combat Hostiles . | . . . Parts Fried . | . . . Impact Corruptions . | . . . Robots Melted . | . . . Combat Hostiles . | . . . Parts Melted . | . . . Heat Transferred 710 | . 375 335 Parts Sabotaged . | . . . Parts Stolen . | . . . Parts Stripped . | . . . Power Chain Reactions 1 | . . 1 Alert | -11 -10 -10 ------- Run | Yrd Mat Sub Peak Influence 347 | . 347 . Initial . | . . . Average 90 | . 90 . Maximum Alert Level 1 | . 1 . Low Security (%) 79 | . 79 . Level 1 20 | . 20 . Level 2 . | . . . Level 3 . | . . . Level 4 . | . . . Level 5 . | . . . High Security . | . . . Max Security . | . . . Squads Dispatched 1 | . 1 . Investigation . | . . . Extermination . | . . . Reinforcement 1 | . 1 . Assault . | . . . Garrison . | . . . Intercept . | . . . Searches Triggered . | . . . Construction Impeded . | . . . Haulers Reinforced . | . . . Active Scanning Responses . | . . . Cargo Convoy Interrupts . | . . . Stealth | -11 -10 -10 --------- Run | Yrd Mat Sub Distress Signals 1 | . 1 . Communications Jammed . | . . . Distress Signals . | . . . Times Spotted 20 | . 14 6 Peak Tracking Total 6 | . 4 6 Tactical Retreats 2 | . 1 1 Traps | -11 -10 -10 ------- Run | Yrd Mat Sub Traps Triggered . | . . . Indirectly . | . . . Trap Hack Attempts . | . . . Triggered . | . . . Disarmed . | . . . Reprogrammed . | . . . Reused . | . . . Traps Extracted . | . . . Installed . | . . . Triggered . | . . . Machines | -11 -10 -10 ---------- Run | Yrd Mat Sub Machines Disabled . | . . . Max in Single Turn . | . . . Machines Repaired . | . . . Machines Dismantled . | . . . Machines Sabotaged . | . . . Overloaded Fab Kills . | . . . Hacking | -11 -10 -10 --------- Run | Yrd Mat Sub Machines Accessed 7 | . 7 . Terminals 7 | . 7 . Fabricators . | . . . Repair Stations . | . . . Recycling Units . | . . . Scanalyzers . | . . . Garrison Access . | . . . Total Hacks 26 | . 26 . Successful 7 | . 7 . Failed 18 | . 18 . Catastrophic 2 | . 2 . Database Lockouts 1 | . 1 . Manual 11 | . 11 . Terminals 26 | . 26 . Fabricators . | . . . Repair Stations . | . . . Recycling Units . | . . . Scanalyzers . | . . . Garrison Access . | . . . Terminal Hacks 7 | . 7 . Prototype ID Bank 1 | . 1 . Terminal Index 1 | . 1 . Alert Level 1 | . 1 . Locate Traps 1 | . 1 . Security Status 1 | . 1 . Hauler Manifests 1 | . 1 . Zone Layout 1 | . 1 . Fabricator Hacks . | . . . Repair Station Hacks . | . . . Recycling Unit Hacks . | . . . Scanalyzer . | . . . Garrison Access Hacks . | . . . Unauthorized Hacks . | . . . Terminals . | . . . Fabricators . | . . . Repair Stations . | . . . Recycling Units . | . . . Scanalyzers . | . . . Garrison Access . | . . . Data Cores Recovered . | . . . Used . | . . . Hacking Detections 7 | . 7 . Full Trace Events 3 | . 3 . Feedback Events . | . . . Feedback Blocked . | . . . Robot Schematics Acquired . | . . . Robots Built . | . . . Authchips . | . . . Time . | . . . Total Robot Build Rating . | . . . Part Schematics Acquired . | . . . Parts Built . | . . . Authchips . | . . . Time . | . . . Total Part Build Rating . | . . . Parts Repaired . | . . . Time . | . . . Parts Recycled . | . . . Recycled Matter . | . . . Retrieved Matter . | . . . Retrieved Components . | . . . Parts Scanalyzed . | . . . Part Schematics Acquired . | . . . Parts Damaged . | . . . Bothacking | -11 -10 -10 ------------ Run | Yrd Mat Sub Used RIF Installer . | . . . Robots Hacked . | . . . Non-combat . | . . . Combat . | . . . Robot Hacks Applied . | . . . Relay Couplers Released . | . . . Fabnet Peak Effective % . | . . . Robots Rewired . | . . . Allies Hacked . | . . . Hacks Repelled . | . . . Allies | -11 -10 -10 -------- Run | Yrd Mat Sub Total Allies . | . . . Largest Group . | . . . Highest-Rated Group . | . . . Highest-Rated Ally . | . . . Total Orders . | . . . Ally Attacks . | . . . Total Damage . | . . . Kills . | . . . Allies Corrupted . | . . . Allies Melted . | . . . Intel | -11 -10 -10 ------- Run | Yrd Mat Sub Robot Analysis Total . | . . . Derelict Logs Recovered . | . . . Drone Launches . | . . . Drone Recoveries . | . . . Exploration | -11 -10 -10 ------------- Run | Yrd Mat Sub Turns Passed 926 | . 805 121 Spaces Moved 967 | 1 722 244 Core 9 | . . 9 Treads . | . . . Legs 232 | 1 231 . Wheels . | . . . Hover . | . . . Flight 726 | . 491 235 Fastest Speed 37 | 120 37 37 Average Speed 57 | 120 63 37 Slowest Speed 200 | 120 200 50 Overloaded Moves . | . . . Propulsion Burnouts . | . . . Robots Hopped 18 | . 18 . Cave-ins Triggered . | . . . Exploration Rate (%) 33 | 2 73 26 Regions Visited 2 Branch Regions 1 Pre-discovered Areas . | . . . Known Exits Taken . | . . . Unknown Exits Taken 2 | 1 1 . Scrap Searched . | . . . Spaces Dug . | . . . Terrain Destroyed 1 | . . 1 Melee . | . . . Projectile . | . . . AOE 1 | . . 1 Terrain Rammed . | . . . Walls Destroyed . | . . . Machines Disabled . | . . . Actions | -11 -10 -10 --------- Run | Yrd Mat Sub Total 1199 | . 942 257 Wait 125 | . 125 . Move 930 | . 686 244 Hop 17 | . 17 . Pick Up 12 | . 12 . Fast Attach 5 | . 5 . Attach 5 | . 3 2 Detach 3 | . 2 1 Swap 13 | . 13 . Drop 16 | . 16 . Fire 72 | . 62 10 Melee . | . . . Ram . | . . . Kick 1 | . 1 . Crush . | . . . Escape Stasis . | . . . Rewire . | . . . Trap . | . . . Miscellaneous . | . . . Route ------- -11/Scrapyard -10/Materials (discovered 5 exits: [*Mat x2] / [*Min x2] / [*Sub]) -10/Subcaves History --------- Turn | Location | Event 1 | -11/Scrapyard | Discovered new exit (range 0) 1 | -11/Scrapyard | Entered Materials 318 | -10/Materials | Build established: Mutant 528 | -10/Materials | Discovered new exit (range 12) 568 | -10/Materials | Discovered new exit (range 14) 656 | -10/Materials | Discovered new exit (range 3) 755 | -10/Materials | Discovered new exit (range 3) 778 | -10/Materials | Discovered new exit (range 12) 778 | -10/Materials | Central database locked down 806 | -10/Materials | Entered Subcaves 904 | -10/Subcaves | Core integrity fell below 50% 924 | -10/Subcaves | Core integrity fell below 20% 927 | -10/Subcaves | Destroyed by 54-X4D(R) with Subdweller Machine Gun Last Messages --------------- Downloaded map data. 00778_ ALERT: Central database lockdown, local access denied. 00781_ Connecting with Terminal... >>Alert(Check) Current Alert Level: 1-V 00787_ Acquired 37 matter. LOCATION=UNKNOWN AMBIENT_HEAT=-10 GOAL=ESCAPE 00886_ Lgt. Assault Rifle destroyed. 00898_ Flight Unit destroyed. 00901_ Lgt. Ion Engine destroyed. 00907_ Chain reaction triggered in Sub. Power Source. 00909_ RB-DCS(R) IFF system glitched. 00911_ Particle Gun destroyed. 00915_ RB-DCS(R) misfires. 00915_ Flight Unit destroyed. 00917_ EM Pulse Gun destroyed. 00924_ RB-DCS(R) destroyed. 00925_ Mining Laser destroyed. Map ----- +----------------------------------------------------+ | ?????????????????????????????????????????????????? | | ?????????????????????????????????????????????????? | | ?????????????????????????????????????????????????? | | ?????????????????????????????????????????????????? | | ?????????????????????????????????????????????????? | | ?????????????????????????????????????????????????? | | ?????????????????????????????????????????????????? | | ?????????????????????????????????????????????????? | | ?????####?????????????????????##?????????????????? | | ##??## ######?????????####??# #?????????????????? | | #??# ####?????## ### #?????????????????? | | #??# #????## #?????????????????? | | #?## #?????# ###???????????????? | | ### ##????# ## ### ##??????????????? | | ## ## #?????# ## #?# #??????????????? | | ### #?????###?# #?# #???????????????? | | #?# ##?????????## #?# ##??????????????? | | #######???????????# ### #??????????????? | | #????????????????# #??????????????? | | #????????????????## ##??????????????? | | #?????????????????# ##??????????????? | | ##?????????###???### ####???????????? | | #????###??## ##### ###?????????? | | ###### ##?# #; ##????????? | | ### R & #????????? | | # R&%@ ## #????????? | | # !R #### #????????? | | #??### #????????? | | ## ## ##????# #????????? | | #### #####?????## ##???????? | | ##??# ### #??????????# #???????? | | ## ####?## ###?# #??????????# #???????? | | ?### ##### #??######?####??????????# ##???????? | | #### #?## #??## #???????????????# #????????? | | # ### ### #???????????????# #????????? | | #???????????????# #???????? | | #???????????????# #???????? | | ###### ### #????????????????## ##???????? | | ?????# ##???????????????????????###????????? | | ??????# ##??????????????????????????????????? | | ??????### #??????????????????????????????????? | | ???????# ## #??????????????????????????????????? | | ??????## ######???????????????????????????????? | | ????### #### ##??######??????????????????????? | | ### ## #### #??????????????????????? | | # #???????????????????????? | | #???????????????????????? | | #???????????????????????? | | #????????????????????????? | | ## ##???????????????????????? | +----------------------------------------------------+ Best States ------------- Heat Dissipation 25 Energy Generation 10 Energy Capacity 125 Matter Stores 333 Matter Capacity 350 Sight Range 16 Terrain Scan Density 10 Propulsion Shielding 33 Evasion (%) 62 Targeting Accuracy 5 Item Schematics ----------------- None Robot Schematics ------------------ None Fabricated ------------ Nothing Alien Tech Used ----------------- None Achievements -------------- None Challenges ------------ None Game ------ Seed CannonLightningCasing Manual? 0 Play Time 00:09:43 Cumulative 654.3 hours Start 2024.02.13 @ 19:42:44 End 2024.02.13 @ 19:51:03 Sessions 1 Manual Loads 0 Difficulty Rogue Special Mode None Game No. 653 Rogue 380 Adventurer 123 Explorer 150 Win Type - Total 25 Types 19/0/4/1/0/0/0/1/0 Lore% 80 Gallery% 91 Achievement% 76 Wizard Run 0 Options --------- Layout 0 ASCII 0 Keyboard 1 Movement Numpad Keybinds 0 Fullscreen 2 Font 18/SmallcapsGlow Map View 38x25 Zoom Use 10% Tactical HUD 1 Map Filters NONE Filters NONE Steam 1 RUN: 2c13f66c-fc92-443e-b0a4-a8ee7bf6ea9a